fUST/lending_fUST_20251101
["ID","MTS","AMOUNT","RATE_DAILY","PERIOD"]
[392808171,1761980106400,151.0,0.00038023,60]
[392808172,1761980106431,151.0,0.00038023,60]
[392808173,1761980106481,151.0,0.00038023,60]
[392808174,1761980106797,-177.0,0.00026,2]
[392808175,1761980106953,151.0,0.00038023,60]
[392808176,1761980107030,151.0,0.00038023,60]
[392808177,1761980107065,151.0,0.00038023,60]
[392808178,1761980107100,151.0,0.00038023,60]
[392808179,1761980108084,-177.0,0.00026,2]
[392808180,1761980108838,151.0,0.00038023,60]
[392808181,1761980108992,6707.27124319,0.00038023,60]
[392808182,1761980109485,156.587,0.00038023,60]
[392808183,1761980110113,162.380719,0.00038023,60]
[392808184,1761980110172,250.0,0.00038023,60]
[392808185,1761980110764,168.3888056,0.00038029,60]
[392808186,1761980110844,250.0,0.00038029,60]
[392808187,1761980111419,168.3888056,0.00038029,60]
[392808188,1761980111804,-272.98029956,0.00026,2]
[392808189,1761980113596,163.6878394,0.00034986,30]
[392808190,1761980113910,299.3567947,0.00034986,30]
[392808191,1761980114084,1000.0,0.00038029,60]
[392808192,1761980114709,1000.0,0.00038029,60]
[392808193,1761980115327,1000.0,0.00038029,60]
[392808194,1761980117399,-177.01321594,0.00026,2]
[392808195,1761980120549,-204.81229669,0.00026,2]
[392808196,1761980122251,1888.0,0.00038029,60]
[392808197,1761980123640,-226.39167539,0.00025603,2]
[392808198,1761980123663,-168.79602792,0.00026,2]
[392808199,1761980123854,-254.30541593,0.00026,2]
[392808200,1761980125007,389.39368167,0.00033603,120]
[392808201,1761980125419,430.14418325,0.00035603,120]
[392808202,1761980128291,-356.54219158,0.00026,2]
[392808203,1761980134466,-286.64237489,0.00026,2]
[392808204,1761980137956,-332.67899997,0.00026,2]
[392808205,1761980151467,152.196811,0.00032579,31]
[392808206,1761980173953,163.6878394,0.00034986,30]
[392808207,1761980174080,299.3567947,0.00034986,30]
[392808208,1761980174424,591.2861859,0.00034986,30]
[392808209,1761980213102,500.0,0.000253,2]
[392808210,1761980232891,5000.0,0.0002551,2]
[392808211,1761980233797,163.6878394,0.00034986,30]
[392808212,1761980234655,299.3567947,0.00034986,30]
[392808213,1761980240978,5000.0,0.0002551,2]
[392808214,1761980249281,5000.0,0.0002551,2]
[392808215,1761980257064,5000.0,0.0002551,2]
[392808216,1761980259627,300.0,0.000253,2]
[392808217,1761980265118,5000.0,0.0002551,2]
[392808218,1761980270153,300.0,0.000253,2]
[392808219,1761980273391,5000.0,0.0002551,2]
[392808220,1761980281552,300.0,0.000253,2]
[392808221,1761980282448,177.0083386,0.0002551,2]
[392808222,1761980282471,4822.9916614,0.0002551,2]
[392808223,1761980290801,5000.0,0.0002551,2]
[392808224,1761980292725,300.0,0.000253,2]
[392808225,1761980292873,594.5041808,0.00034986,30]
[392808226,1761980293092,163.6878394,0.00034986,30]
[392808227,1761980294000,591.2861859,0.00034986,30]
[392808228,1761980299433,4700.01,0.0002551,2]
[392808229,1761980299460,299.99,0.0002551,2]
[392808230,1761980303778,300.0,0.000253,2]
[392808231,1761980307227,5000.0,0.0002551,2]
[392808232,1761980315168,4400.02,0.0002551,2]
[392808233,1761980315191,599.98,0.0002551,2]
[392808234,1761980322898,2420.54583845,0.0002551,2]
[392808235,1761980330931,5000.0,0.0002551,2]
[392808236,1761980338722,2579.46416155,0.0002551,2]
[392808237,1761980338746,2420.53583845,0.0002551,2]
[392808238,1761980354395,5000.0,0.0002551,2]
[392808239,1761980354820,591.2861859,0.00034986,30]
[392808240,1761980362149,2579.47416155,0.0002551,2]
[392808241,1761980362170,2420.52583845,0.0002551,2]
[392808242,1761980368208,300.0,0.000255,2]
[392808243,1761980377349,5000.0,0.0002551,2]
[392808244,1761980379261,300.0,0.000255,2]
[392808245,1761980385148,1979.48416155,0.0002551,2]
[392808246,1761980385169,3020.51583845,0.0002551,2]
[392808247,1761980390013,300.0,0.000255,2]
[392808248,1761980400290,5000.0,0.0002551,2]
[392808249,1761980400869,300.0,0.000255,2]
[392808250,1761980403090,1379.49416155,0.00025205,2]
[392808251,1761980403112,2638.50583845,0.00025205,2]
[392808252,1761980404405,372.44313382,0.00025205,2]
[392808253,1761980404759,200.0,0.00025205,2]
[392808258,1761980408074,5000.0,0.0002551,2]
[392808260,1761980411689,300.0,0.000255,2]
[392808261,1761980413060,460.20060327,0.00038036,60]
[392808264,1761980415312,591.2861859,0.00034986,30]
[392808265,1761980420113,500.0,0.000253,2]
[392808266,1761980423073,300.0,0.000255,2]
[392808267,1761980423857,689.06102773,0.0002551,2]
[392808268,1761980423883,4310.93897227,0.0002551,2]
[392808269,1761980425089,300.0,0.000255,2]
[392808270,1761980431598,5000.0,0.0002551,2]
[392808272,1761980435807,300.0,0.000255,2]
[392808273,1761980439632,89.07102773,0.0002551,2]
[392808274,1761980439656,4910.92897227,0.0002551,2]
[392808275,1761980445120,467.86228242,0.00033603,120]
[392808276,1761980445571,516.8246143,0.00035603,120]
[392808277,1761980447425,5000.0,0.0002551,2]
[392808278,1761980455389,89.08102773,0.0002551,2]
[392808279,1761980455414,4910.91897227,0.0002551,2]
[392808280,1761980471143,5000.0,0.0002551,2]
[392808281,1761980474869,167.230866,0.00034986,30]
[392808282,1761980475492,604.0580996,0.00034986,30]
[392808283,1761980478937,89.09102773,0.0002551,2]
[392808284,1761980478961,4910.90897227,0.0002551,2]
[392808285,1761980486927,4974.33289345,0.0002551,2]
[392808286,1761980487504,114.76813428,0.000255,2]
[392808287,1761980487527,185.23186572,0.000255,2]
[392808288,1761980488745,400.61655348,0.00035616,120]
[392808289,1761980494787,5000.0,0.0002551,2]
[392808290,1761980497861,300.0,0.000255,2]
[392808291,1761980503235,4514.77813428,0.0002551,2]
[392808292,1761980503260,485.22186572,0.0002551,2]
[392808293,1761980509088,300.0,0.000255,2]
[392808294,1761980518904,5000.0,0.0002551,2]
[392808295,1761980520775,300.0,0.000255,2]
[392808296,1761980526752,3914.78813428,0.0002551,2]
[392808297,1761980526779,1085.21186572,0.0002551,2]
[392808298,1761980532946,300.0,0.000255,2]
[392808299,1761980534846,591.2861859,0.00034986,30]
[392808300,1761980541977,5000.0,0.0002551,2]
[392808301,1761980543289,300.0,0.000255,2]
[392808302,1761980545771,300.0,0.000255,2]
[392808303,1761980549734,3014.79813428,0.0002551,2]
[392808304,1761980549757,1985.20186572,0.0002551,2]
[392808305,1761980554011,300.0,0.000255,2]
[392808306,1761980556093,300.0,0.000255,2]
[392808307,1761980558300,3303.84172009,0.0002551,2]
[392808308,1761980564953,300.0,0.000255,2]
[392808309,1761980566057,3810.96641419,0.0002551,2]
[392808310,1761980566081,1189.03358581,0.0002551,2]
[392808322,1761980568124,300.0,0.000255,2]
[392808323,1761980574084,5000.0,0.0002551,2]
[392808325,1761980575861,300.0,0.000255,2]
[392808326,1761980578788,300.0,0.000255,2]
[392808327,1761980581936,2910.97641419,0.0002551,2]
[392808328,1761980581961,1966.95931726,0.0002551,2]
[392808329,1761980586295,300.0,0.000255,2]
[392808330,1761980589283,300.0,0.000255,2]
[392808331,1761980589997,5000.0,0.0002551,2]
[392808332,1761980593224,156.0,1.04e-06,2]
[392808333,1761980594272,156.0,1.04e-06,2]
[392808334,1761980594360,591.2861859,0.00034986,30]
[392808335,1761980595323,156.0,1.04e-06,2]
[392808336,1761980596408,156.0,1.04e-06,2]
[392808337,1761980596884,300.0,0.000255,2]
[392808339,1761980597595,156.0,1.04e-06,2]
[392808340,1761980597754,1353.05068274,0.0002551,2]
[392808341,1761980598652,156.0,1.04e-06,2]
[392808342,1761980599001,-531.00000003,0.0002551,2]
[392808343,1761980600323,-600.00000003,0.0002551,2]
[392808344,1761980600351,300.0,0.000255,2]
[392808345,1761980601461,-908.85659663,0.0002551,2]
[392808347,1761980605804,300.0,0.000255,2]
[392808348,1761980609224,300.0,0.000255,2]
[392808349,1761980611086,300.0,0.000255,2]
[392808350,1761980613452,5000.0,0.0002551,2]
[392808351,1761980617915,300.0,0.000255,2]
[392808352,1761980620406,300.0,0.000255,2]
[392808353,1761980621547,300.0,0.000255,2]
[392808354,1761980629084,300.0,0.000255,2]
[392808356,1761980632173,300.0,0.000255,2]
[392808357,1761980633186,300.0,0.000255,2]
[392808358,1761980633345,-440.63976458,0.0002551,2]
[392808359,1761980635561,-282.08148419,0.0002551,2]
[392808360,1761980635950,1844.01,0.0002551,2]
[392808361,1761980636073,3155.99,0.0002551,2]
[392808362,1761980637090,-216.10290005,0.0002551,2]
[392808363,1761980638641,-300.0,0.0002551,2]
[392808364,1761980639483,300.0,0.000255,2]
[392808365,1761980640277,-300.0,0.0002551,2]
[392808366,1761980642229,300.0,0.000255,2]
[392808367,1761980642644,-68.26857175,0.0002551,2]
[392808368,1761980642670,-213.81291244,0.00025603,2]
[392808369,1761980643660,-58.20004246,0.00025603,2]
[392808370,1761980644173,241.79995754,0.000255,2]
[392808371,1761980644199,58.20004246,0.000255,2]
[392808372,1761980654148,372.7715983,0.00034986,30]
[392808373,1761980657970,5000.0,0.0002551,2]
[392808374,1761980665538,260.2331571,0.000255,2]
[392808375,1761980665699,925.58680044,0.0002551,2]
[392808376,1761980665723,4074.41319956,0.0002551,2]
[392808377,1761980682349,5000.0,0.0002551,2]
[392808378,1761980689483,160.0,0.00035616,30]
[392808379,1761980692823,-170.02324984,0.0002579,2]
[392808380,1761980703085,4018.0,0.00025205,2]
[392808381,1761980706728,5000.0,0.0002551,2]
[392808398,1761980729313,982.01,0.0002551,2]
[392808399,1761980729337,4017.99,0.0002551,2]
[392808402,1761980743581,4548.7858007,0.00025488,2]
[392808404,1761980751478,150.0,0.00035,120]
[392808405,1761980751939,1433.2341993,0.0002551,2]
[392808406,1761980751964,3566.7658007,0.0002551,2]
[392808407,1761980764968,302.07093097,0.00025497,2]
[392808408,1761980766617,519.56200127,0.00033497,120]
[392808409,1761980767060,573.93476885,0.00035497,120]
[392808438,1761980799666,500.0,0.000253,2]
[392808439,1761980827129,-4829.97675016,0.0002579,2]
[392808440,1761980827149,-170.26992124,0.000258,2]
[392808441,1761980827168,-265.14104272,0.000259,2]
[392808442,1761980827187,-1200.0,0.00025999,2]
[392808443,1761980827207,-300.0,0.00025999,2]
[392808444,1761980827226,-300.0,0.00025999,2]
[392808445,1761980827245,-10360.84539376,0.00026,2]
[392808446,1761980827263,-1000.0,0.00026396,2]
[392808447,1761980827282,-300.0,0.00026574,2]
[392808448,1761980827302,-300.0,0.00026574,2]
[392808449,1761980827322,-300.0,0.00026574,2]
[392808450,1761980827340,-167.42942248,0.00026712,21]
[392808451,1761980827359,-413.95347628,0.00026748,2]
[392808452,1761980827378,-3438.0683711,0.00026776,2]
[392808453,1761980827397,-1951.13,0.00026837,10]
[392808454,1761980827418,-1625.95,0.00026837,10]
[392808455,1761980827438,-2341.36,0.00026838,10]
[392808456,1761980827458,-1384.868904,0.00026838,2]
[392808457,1761980827478,-500.0,0.00026847,2]
[392808458,1761980827499,-500.0,0.00026847,2]
[392808459,1761980827519,-500.0,0.00026847,2]
[392808460,1761980827543,-500.0,0.00026847,2]
[392808461,1761980827569,-500.0,0.00026847,2]
[392808462,1761980827591,-500.0,0.00026847,2]
[392808463,1761980827612,-500.0,0.00026847,2]
[392808464,1761980827644,-500.0,0.00026847,2]
[392808465,1761980827664,-500.0,0.00026847,2]
[392808466,1761980827683,-500.0,0.00026847,2]
[392808467,1761980827704,-500.0,0.00026847,2]
[392808468,1761980827725,-500.0,0.00026847,2]
[392808469,1761980827744,-500.0,0.00026847,2]
[392808470,1761980827766,-500.0,0.00026847,2]
[392808471,1761980827785,-500.0,0.00026847,2]
[392808472,1761980827806,-605.06540035,0.00026847,2]
[392808473,1761980827911,-500.0,0.00026847,2]
[392808474,1761980827932,-229.23694428,0.00026847,2]
[392808475,1761980827953,-500.0,0.00026847,2]
[392808476,1761980827975,-500.0,0.00026847,2]
[392808477,1761980827996,-500.0,0.00026847,2]
[392808478,1761980828018,-500.0,0.00026847,2]
[392808479,1761980828038,-500.0,0.00026847,2]
[392808480,1761980828058,-500.0,0.00026847,2]
[392808481,1761980828077,-387.78405442,0.00026847,2]
[392808483,1761980839088,-1354.95,0.00026838,10]
[392808484,1761980839108,-112.21594558,0.00026847,2]
[392808485,1761980839128,-500.0,0.00026847,2]
[392808486,1761980839149,-500.0,0.00026847,2]
[392808487,1761980839168,-500.0,0.00026847,2]
[392808488,1761980839189,-500.0,0.00026847,2]
[392808489,1761980839208,-500.0,0.00026847,2]
[392808490,1761980839231,-500.0,0.00026847,2]
[392808491,1761980839250,-500.0,0.00026847,2]
[392808492,1761980839271,-500.0,0.00026847,2]
[392808493,1761980839293,-500.0,0.00026847,2]
[392808494,1761980839313,-500.0,0.00026847,2]
[392808495,1761980839334,-500.0,0.00026847,2]
[392808496,1761980839354,-500.0,0.00026847,2]
[392808497,1761980839373,-500.0,0.00026847,2]
[392808498,1761980839392,-198.35262473,0.00026847,2]
[392808499,1761980839414,-500.0,0.00026847,2]
[392808500,1761980839433,-500.0,0.00026847,2]
[392808501,1761980839453,-500.0,0.00026847,2]
[392808502,1761980839474,-250.0,0.00026847,2]
[392808503,1761980839495,-500.0,0.00026847,2]
[392808504,1761980839516,-500.0,0.00026847,2]
[392808505,1761980839536,-500.0,0.00026847,2]
[392808506,1761980839556,-500.0,0.00026847,2]
[392808507,1761980839584,-500.0,0.00026847,2]
[392808508,1761980839609,-500.0,0.00026847,2]
[392808509,1761980839632,-500.0,0.00026847,2]
[392808510,1761980839657,-500.0,0.00026847,2]
[392808511,1761980839681,-500.0,0.00026847,2]
[392808512,1761980839711,-500.0,0.00026847,2]
[392808513,1761980839735,-500.0,0.00026847,2]
[392808514,1761980839761,-500.0,0.00026847,2]
[392808515,1761980839784,-500.0,0.00026847,2]
[392808516,1761980839809,-500.0,0.00026847,2]
[392808517,1761980839836,-500.0,0.00026847,2]
[392808518,1761980839862,-421.6481041,0.00026847,2]
[392808519,1761980839886,-500.0,0.00026847,2]
[392808520,1761980839911,-270.13793123,0.00026847,2]
[392808521,1761980839937,-166.87847127,0.00026847,2]
[392808522,1761980839962,-500.0,0.00026847,2]
[392808523,1761980839991,-500.0,0.00026847,2]
[392808524,1761980840020,-500.0,0.00026847,2]
[392808525,1761980840044,-500.0,0.00026847,2]
[392808526,1761980840072,-500.0,0.00026847,2]
[392808527,1761980840096,-500.0,0.00026847,2]
[392808528,1761980840118,-500.0,0.00026847,2]
[392808529,1761980840142,-500.0,0.00026847,2]
[392808530,1761980840169,-500.0,0.00026847,2]
[392808531,1761980840196,-500.0,0.00026847,2]
[392808532,1761980840220,-500.0,0.00026847,2]
[392808533,1761980840245,-500.0,0.00026847,2]
[392808534,1761980840271,-500.0,0.00026847,2]
[392808535,1761980840295,-500.0,0.00026847,2]
[392808536,1761980840317,-500.0,0.00026847,2]
[392808537,1761980840341,-500.0,0.00026847,2]
[392808538,1761980840369,-500.0,0.00026847,2]
[392808539,1761980840393,-500.0,0.00026847,2]
[392808540,1761980840416,-500.0,0.00026847,2]
[392808541,1761980840440,-500.0,0.00026847,2]
[392808542,1761980840463,-500.0,0.00026847,2]
[392808543,1761980840488,-500.0,0.00026847,2]
[392808544,1761980840512,-500.0,0.00026847,2]
[392808545,1761980840536,-500.0,0.00026847,2]
[392808546,1761980840564,-500.0,0.00026847,2]
[392808547,1761980840589,-500.0,0.00026847,2]
[392808548,1761980840614,-500.0,0.00026847,2]
[392808549,1761980840639,-500.0,0.00026847,2]
[392808550,1761980840665,-500.0,0.00026847,2]
[392808551,1761980840790,-500.0,0.00026847,2]
[392808552,1761980840816,-500.0,0.00026847,2]
[392808553,1761980840837,-500.0,0.00026847,2]
[392808554,1761980840860,-500.0,0.00026847,2]
[392808555,1761980840882,-500.0,0.00026847,2]
[392808556,1761980840903,-500.0,0.00026847,2]
[392808557,1761980840925,-500.0,0.00026847,2]
[392808558,1761980840945,-500.0,0.00026847,2]
[392808559,1761980840966,-500.0,0.00026847,2]
[392808560,1761980840988,-500.0,0.00026847,2]
[392808561,1761980841010,-500.0,0.00026847,2]
[392808562,1761980841031,-500.0,0.00026847,2]
[392808563,1761980841051,-500.0,0.00026847,2]
[392808564,1761980841071,-500.0,0.00026847,2]
[392808565,1761980841091,-500.0,0.00026847,2]
[392808566,1761980841112,-500.0,0.00026847,2]
[392808567,1761980841132,-500.0,0.00026847,2]
[392808568,1761980841153,-500.0,0.00026847,2]
[392808569,1761980841174,-500.0,0.00026847,2]
[392808570,1761980841196,-500.0,0.00026847,2]
[392808571,1761980841218,-500.0,0.00026847,2]
[392808572,1761980841240,-500.0,0.00026847,2]
[392808573,1761980841260,-500.0,0.00026847,2]
[392808574,1761980841282,-500.0,0.00026847,2]
[392808575,1761980841302,-500.0,0.00026847,2]
[392808576,1761980841322,-650.0,0.00026847,2]
[392808577,1761980841343,-500.0,0.00026847,2]
[392808578,1761980841364,-540.71373197,0.00026847,2]
[392808579,1761980841386,-500.0,0.00026847,2]
[392808580,1761980841406,-500.0,0.00026847,2]
[392808581,1761980841428,-500.0,0.00026847,2]
[392808582,1761980841448,-350.0,0.00026847,2]
[392808583,1761980841468,-500.0,0.00026847,2]
[392808584,1761980841490,-500.0,0.00026847,2]
[392808585,1761980841512,-500.0,0.00026847,2]
[392808586,1761980841533,-500.0,0.00026847,2]
[392808587,1761980841554,-500.0,0.00026847,2]
[392808588,1761980841580,-500.0,0.00026847,2]
[392808589,1761980841601,-500.0,0.00026847,2]
[392808590,1761980841622,-500.0,0.00026847,2]
[392808591,1761980841644,-500.0,0.00026847,2]
[392808592,1761980841665,-500.0,0.00026847,2]
[392808593,1761980841686,-500.0,0.00026847,2]
[392808594,1761980841709,-500.0,0.00026847,2]
[392808595,1761980841732,-500.0,0.00026847,2]
[392808596,1761980841756,-500.0,0.00026847,2]
[392808597,1761980841779,-500.0,0.00026847,2]
[392808598,1761980841801,-500.0,0.00026847,2]
[392808599,1761980841823,-161.31983014,0.00026847,2]
[392808600,1761980841846,-500.0,0.00026847,2]
[392808601,1761980841868,-500.0,0.00026847,2]
[392808602,1761980841891,-500.0,0.00026847,2]
[392808603,1761980841914,-500.0,0.00026847,2]
[392808604,1761980841937,-500.0,0.00026847,2]
[392808605,1761980841959,-500.0,0.00026847,2]
[392808606,1761980841982,-500.0,0.00026847,2]
[392808607,1761980842005,-500.0,0.00026847,2]
[392808608,1761980842027,-500.0,0.00026847,2]
[392808609,1761980842049,-500.0,0.00026847,2]
[392808610,1761980842071,-500.0,0.00026847,2]
[392808611,1761980842092,-500.0,0.00026847,2]
[392808612,1761980842114,-500.0,0.00026847,2]
[392808613,1761980842137,-500.0,0.00026847,2]
[392808614,1761980842159,-500.0,0.00026847,2]
[392808615,1761980842180,-500.0,0.00026847,2]
[392808616,1761980842202,-500.0,0.00026847,2]
[392808617,1761980842223,-500.0,0.00026847,2]
[392808618,1761980842245,-500.0,0.00026847,2]
[392808619,1761980842266,-500.0,0.00026847,2]
[392808620,1761980842288,-500.0,0.00026847,2]
[392808621,1761980842309,-500.0,0.00026847,2]
[392808622,1761980842329,-500.0,0.00026847,2]
[392808623,1761980842351,-500.0,0.00026847,2]
[392808624,1761980842372,-500.0,0.00026847,2]
[392808625,1761980842393,-500.0,0.00026847,2]
[392808626,1761980842414,-500.0,0.00026847,2]
[392808627,1761980842436,-500.0,0.00026847,2]
[392808628,1761980842456,-500.0,0.00026847,2]
[392808629,1761980842479,-500.0,0.00026847,2]
[392808630,1761980842501,-500.0,0.00026847,2]
[392808631,1761980842524,-500.0,0.00026847,2]
[392808632,1761980842546,-400.0,0.00026847,2]
[392808633,1761980842570,-50000.0,0.00026848,2]
[392808634,1761980842592,-1200.0,0.00026848,2]
[392808635,1761980842620,-500.0,0.00026873,2]
[392808636,1761980842641,-500.0,0.00027121,2]
[392808637,1761980842662,-500.0,0.00027395,2]
[392808638,1761980842681,-506.65177772,0.00027421,5]
[392808639,1761980842700,-345.35977022,0.00027492,5]
[392808640,1761980842720,-356.44369855,0.00027497,2]
[392808641,1761980842740,-420.0,0.00028137,2]
[392808642,1761980842761,-420.0,0.00028137,2]
[392808643,1761980842780,-413.95347626,0.00028205,2]
[392808644,1761980842800,-1540.91078611,0.00028262,2]
[392808646,1761980845233,5000.0,0.0002551,2]
[392808651,1761980867728,631.17326833,0.0002551,2]
[392808652,1761980867752,4368.82673167,0.0002551,2]
[392808653,1761980880422,181.51,0.00017982,2]
[392808654,1761980880704,181.51,0.00017982,2]
[392808655,1761980880979,181.51,0.00017982,2]
[392808661,1761980935780,3134.32144612,0.0003561,30]
[392808663,1761980974120,-3936.5112781,0.00026427,2]
[392808664,1761980974142,-5000.0,0.00026604,2]
[392808665,1761980974162,-300.0,0.00026872,2]
[392808666,1761980974182,-514.22373424,0.00026873,2]
[392808667,1761980974204,-500.0,0.00026873,2]
[392808668,1761980974223,-502.66928036,0.00026873,2]
[392808669,1761980974241,-230.55903613,0.00026873,2]
[392808670,1761980974260,-504.99461378,0.00026873,2]
[392808671,1761980974279,-500.0,0.00027421,5]
[392808672,1761980974300,-139.08921389,0.00028262,2]
[392808673,1761980974319,-2148.81610489,0.00028284,2]
[392808695,1761981032620,-361.77735408,0.0002687,2]
[392808697,1761981032629,-413.45983323,0.0002687,2]
[392808699,1761981032639,-645.38495844,0.0002687,2]
[392808701,1761981032648,-300.0,0.00028282,2]
[392808704,1761981032658,-300.0,0.00028283,2]
[392808706,1761981032671,-300.0,0.00028283,2]
[392808708,1761981032680,-300.0,0.00028283,2]
[392808710,1761981032689,-555.54626633,0.00028283,2]
[392808712,1761981032701,-644.45373367,0.00028283,2]
[392808714,1761981032714,-47851.18389511,0.00028284,2]
[392808716,1761981032724,-1200.0,0.00028741,2]
[392808718,1761981032733,-380.0,0.00028755,2]
[392808720,1761981032743,-338.51,0.0002884,2]
[392808722,1761981032754,-2001.35113007,0.00029048,2]
[392808724,1761981032763,-500.0,0.00029157,4]
[392808726,1761981032772,-163.60402576,0.00029157,4]
[392808728,1761981032781,-500.0,0.00029157,2]
[392808731,1761981032792,-500.0,0.00029157,2]
[392808734,1761981032801,-500.0,0.00029157,2]
[392808737,1761981032810,-500.0,0.00029158,2]
[392808740,1761981032820,-500.0,0.00029158,2]
[392808743,1761981032829,-500.0,0.00029158,2]
[392808745,1761981032838,-509.85619046,0.00029173,5]
[392808748,1761981032848,-502.24532673,0.00029173,5]
[392808750,1761981032857,-151.0,0.00029181,2]
[392808752,1761981032867,-151.0,0.00029181,2]
[392808753,1761981032876,-151.0,0.00029181,2]
[392808754,1761981032886,-151.0,0.00029181,2]
[392808755,1761981032895,-151.0,0.00029181,2]
[392808756,1761981032904,-151.0,0.00029181,2]
[392808757,1761981032914,-151.0,0.00029181,2]
[392808758,1761981032923,-151.0,0.00029181,2]
[392808759,1761981032932,-151.0,0.00029181,2]
[392808760,1761981032942,-151.0,0.00029181,2]
[392808761,1761981032951,-151.0,0.00029181,2]
[392808762,1761981032961,-151.0,0.00029181,2]
[392808763,1761981032970,-151.0,0.00029181,2]
[392808764,1761981032979,-151.0,0.00029181,2]
[392808765,1761981032988,-151.0,0.00029181,2]
[392808766,1761981032998,-151.0,0.00029181,2]
[392808767,1761981033007,-151.0,0.00029181,2]
[392808768,1761981033017,-151.0,0.00029181,2]
[392808769,1761981033027,-151.0,0.00029181,2]
[392808770,1761981033036,-151.0,0.00029181,2]
[392808771,1761981033045,-151.0,0.00029181,2]
[392808772,1761981033056,-151.0,0.00029181,2]
[392808773,1761981033065,-151.0,0.00029181,2]
[392808774,1761981033075,-151.0,0.00029181,2]
[392808775,1761981033085,-151.0,0.00029181,2]
[392808785,1761981033168,-151.0,0.00029181,2]
[392808787,1761981033196,-151.0,0.00029181,2]
[392808790,1761981033205,-151.0,0.00029181,2]
[392808792,1761981033214,-1331.17,0.0002919,10]
[392808794,1761981033223,-500.0,0.00029199,2]
[392808796,1761981033232,-241.66149726,0.00029199,2]
[392808798,1761981033241,-20354.23903684,0.000292,7]
[392808799,1761981033252,-7059.30096316,0.000292,7]
[392808801,1761981033262,-1597.4,0.00029488,10]
[392808803,1761981033271,-410.81646612,0.00029497,2]
[392808805,1761981033281,-2001.35113006,0.00029506,2]
[392808807,1761981033290,-1122.0,0.00029546,7]
[392808809,1761981033300,-260.0,0.00029611,2]
[392808811,1761981033310,-168.43,0.00029611,2]
[392808813,1761981033319,-168.43,0.00029611,2]
[392808815,1761981033329,-168.43,0.00029611,2]
[392808817,1761981033338,-168.43,0.00029611,2]
[392808819,1761981033347,-168.43,0.00029611,2]
[392808822,1761981033357,-168.44,0.00029611,2]
[392808823,1761981033366,-268.45354497,0.00029762,2]
[392808825,1761981033375,-151.0,0.00029762,7]
[392808828,1761981033385,-337.46085208,0.00029764,2]
[392808829,1761981033394,-385.66954523,0.00029764,2]
[392808831,1761981033403,-602.00605576,0.00029764,2]
[392808833,1761981033412,-1122.0,0.00029843,2]
[392808835,1761981033421,-14776.448714,0.0002989,2]
[392808928,1761981042188,-577.59473608,0.00028283,2]
[392808929,1761981042197,-500.0,0.00028283,2]
[392808930,1761981042206,-500.0,0.00028283,2]
[392808931,1761981042215,-303.24854936,0.00028283,2]